bitfinex-derivatives/quotes_ETHF0:USTF0_20250911
["timestamp","ask_amount","ask_price","bid_price","bid_amount"]
[1757599523887,0.5212,4430.7,4429.8,0.22581]
[1757599524186,0.7265,4430.5,4429.8,0.22581]
[1757599524783,0.7265,4430.5,4429.9,0.22581]
[1757599525180,0.7265,4430.5,4429.6,0.5191]
[1757599525387,0.90813258,4430.5,4429.6,0.5191]
[1757599525885,0.7265,4430.5,4429.9,0.74491]
[1757599526778,0.2053,4430.5,4430.1,0.74491]
[1757599526977,0.5212,4430.4,4430.1,0.22581]
[1757599527184,0.5212,4430.4,4429.7,0.5191]
[1757599527384,0.2053,4431.0,4429.6,0.4975]
[1757599527583,0.2053,4431.0,4429.0,0.211]
[1757599527584,0.54206159,4430.9,4430.4,0.72331]
[1757599527784,0.212,4430.5,4430.0,0.4975]
[1757599527984,0.4953,4430.4,4430.1,0.22581]
[1757599528181,0.4953,4430.4,4429.6,0.4975]
[1757599528380,0.212,4430.5,4430.1,0.72331]
[1757599528581,0.4953,4430.4,4430.0,0.22581]
[1757599528782,0.4953,4430.4,4429.6,0.4975]
[1757599528979,0.4953,4430.4,4430.0,0.22581]
[1757599529180,0.212,4430.5,4430.0,0.22581]
[1757599529396,0.4953,4430.4,4429.6,0.4975]
[1757599529586,0.4953,4430.4,4430.0,0.22581]
[1757599529990,0.4953,4430.4,4429.6,0.4975]
[1757599530291,0.4953,4430.4,4429.8,0.22581]
[1757599530888,0.4953,4430.4,4429.6,0.4975]
[1757599531089,0.4953,4430.4,4429.7,0.22581]
[1757599531483,0.4953,4430.4,4429.9,0.22581]
[1757599531683,0.39100288,4430.5,4429.9,0.22581]
[1757599531885,0.39100288,4430.5,4429.5,0.1928]
[1757599531886,0.4953,4430.9,4430.1,0.4975]
[1757599532085,0.4953,4430.9,4430.2,0.22581]
[1757599532684,0.4953,4430.9,4430.5,0.22581]
[1757599533091,0.4953,4430.9,4430.2,0.4975]
[1757599533590,0.4953,4430.9,4430.7,0.4975]
[1757599533790,0.18031841,4431.0,4430.7,0.4975]
[1757599533994,0.4953,4430.9,4430.1,0.4975]
[1757599534290,0.212,4431.0,4430.6,0.22581]
[1757599534495,0.4953,4430.9,4430.6,0.22581]
[1757599534791,0.4953,4430.9,4429.5,0.1928]
[1757599535098,0.4953,4430.7,4430.2,0.22581]
[1757599535389,0.4953,4430.4,4430.1,0.22581]
[1757599535589,0.4953,4430.4,4429.0,0.211]
[1757599535891,0.4953,4430.2,4428.5,0.211]
[1757599536089,0.4953,4429.9,4428.0,0.1928]
[1757599536288,0.5416657,4429.8,4428.0,0.1928]
[1757599536487,0.4953,4429.6,4428.0,0.1928]
[1757599536688,0.4953,4429.4,4428.0,0.1928]
[1757599536894,0.4953,4429.4,4428.1,0.4975]
[1757599537388,0.212,4429.5,4427.6,0.4975]
[1757599537696,0.4953,4429.3,4427.6,0.72331]
[1757599537894,0.54172373,4429.2,4427.7,0.4975]
[1757599538190,0.7073,4429.0,4427.7,0.4975]
[1757599539394,0.93312,4429.0,4427.7,0.4975]
[1757599539899,0.7073,4429.0,4427.7,0.4975]
[1757599540287,0.5415999,4428.9,4427.7,0.4975]
[1757599540486,0.7073,4429.0,4427.7,0.4975]
[1757599540692,0.4953,4428.8,4427.1,0.4975]
[1757599540892,0.4953,4428.6,4427.1,0.4975]
[1757599541091,0.4953,4428.4,4427.1,0.4975]
[1757599542298,0.4953,4428.9,4427.2,0.22585]
[1757599542594,0.4953,4428.7,4427.3,0.4975]
[1757599543002,0.4953,4428.7,4427.5,0.1928]
[1757599543193,0.4953,4428.9,4427.6,0.4975]
[1757599543387,0.4953,4428.7,4427.6,0.4975]
[1757599543992,0.4953,4429.2,4427.8,0.4975]
[1757599544603,0.4953,4429.2,4428.0,0.1928]
[1757599544804,0.4953,4429.2,4428.1,0.4975]
[1757599546698,0.212,4430.0,4428.1,0.4975]
[1757599547000,1.03624253,4429.9,4428.2,0.22578]
[1757599547302,0.4953,4429.9,4428.3,0.4975]
[1757599547501,0.4953,4430.4,4428.6,0.4975]
[1757599547797,0.54092524,4430.3,4428.6,0.4975]
[1757599548003,0.4953,4430.4,4428.7,0.22576]
[1757599548299,0.5413625,4430.3,4428.8,0.4975]
[1757599548507,0.212,4431.5,4428.8,0.4975]
[1757599548700,1.03661818,4430.9,4429.0,0.1928]
[1757599548900,0.54131818,4430.8,4429.1,0.4975]
[1757599549121,0.4953,4430.7,4429.1,0.4975]
[1757599549400,0.7073,4430.5,4428.6,0.4975]
[1757599549602,0.54131818,4430.4,4428.6,0.4975]
[1757599549800,0.4953,4430.3,4428.6,0.4975]
[1757599550007,0.4953,4430.1,4428.6,0.4975]
[1757599550306,0.4953,4429.9,4428.6,0.4975]
[1757599550505,0.4953,4429.7,4428.6,0.4975]
[1757599550803,0.4953,4429.4,4428.6,0.4975]
[1757599552409,0.54251687,4429.3,4428.6,0.4975]
[1757599552611,0.4953,4429.4,4428.6,0.4975]
[1757599552817,0.4953,4429.2,4428.6,0.4975]
[1757599553200,0.4953,4429.2,4428.1,0.4975]
[1757599553506,0.4953,4428.9,4428.1,0.4975]
[1757599554109,0.4953,4428.7,4427.6,0.4975]
[1757599554299,0.212,4429.0,4427.6,0.22582]
[1757599554501,0.4953,4428.8,4427.7,0.4975]
[1757599554703,0.54261957,4428.7,4427.7,0.4975]
[1757599555009,0.4953,4428.5,4427.7,0.4975]
[1757599555205,0.212,4429.0,4427.7,0.22582]
[1757599555405,0.54264691,4428.9,4427.8,0.4975]
[1757599555609,0.54264691,4428.8,4427.8,0.4975]
[1757599555800,0.4953,4429.1,4428.0,0.1928]
[1757599556001,0.75463625,4429.0,4428.1,0.4975]
[1757599556203,1.03793625,4428.9,4428.1,0.4975]
[1757599556510,0.4953,4428.7,4428.1,0.4975]
[1757599557005,0.54270587,4428.6,4427.6,0.4975]
[1757599557203,0.4953,4428.4,4427.6,0.4975]
[1757599559609,0.5081,4428.9,4427.6,0.4975]
[1757599559805,0.54287952,4428.8,4427.7,0.4951]
[1757599560107,0.54287952,4428.7,4427.7,0.4951]
[1757599560303,0.54287952,4428.6,4427.8,0.22582]
[1757599560504,0.54287952,4428.5,4428.1,0.4951]
[1757599560708,0.5081,4429.4,4428.1,0.4951]
[1757599560909,0.5081,4429.4,4428.2,0.22579]
[1757599560910,0.54290701,4429.3,4428.2,0.22579]
[1757599561112,0.54290701,4429.3,4428.0,0.2022]
[1757599561113,0.54290701,4429.2,4428.1,0.4951]
[1757599561304,0.5081,4429.0,4428.2,0.4951]
[1757599561504,0.54290701,4428.9,4428.2,0.2258]
[1757599561704,0.54290701,4428.9,4428.0,0.2022]
[1757599561705,0.18471094,4429.7,4428.6,0.4951]
[1757599561917,0.5081,4429.5,4428.6,0.4951]
[1757599562214,0.5081,4429.3,4428.6,0.4951]
[1757599562407,0.5081,4429.9,4428.6,0.4951]
[1757599562613,0.54307963,4429.8,4428.6,0.4951]
[1757599562910,0.5081,4429.4,4428.6,0.4951]
[1757599563106,0.5081,4429.2,4428.2,0.4951]
[1757599563412,0.54333681,4429.1,4428.2,0.4951]
[1757599563609,0.1979,4429.5,4428.2,0.4951]
[1757599563804,0.54334334,4429.4,4428.5,0.2022]
[1757599564127,0.212,4430.0,4429.0,0.2022]
[1757599564310,0.54328926,4429.9,4429.1,0.4951]
[1757599564513,0.5081,4430.0,4429.1,0.4951]
[1757599564514,0.54328926,4429.8,4429.1,0.4951]
[1757599564812,0.5081,4430.0,4429.1,0.4951]
[1757599565111,0.54346399,4429.9,4429.1,0.4951]
[1757599565310,0.54346399,4429.8,4429.1,0.4951]
[1757599565507,0.5081,4430.0,4429.1,0.4951]
[1757599565712,0.54355802,4429.9,4429.1,0.4951]
[1757599565911,0.54355802,4429.8,4429.1,0.4951]
[1757599566110,0.17647152,4430.4,4429.6,0.4951]
[1757599566309,1.05156138,4430.3,4429.6,0.4951]
[1757599566613,0.5081,4430.0,4429.5,0.2022]
[1757599566911,0.54346138,4429.9,4429.6,0.4951]
[1757599567113,0.5081,4429.7,4429.6,0.4951]
[1757599567817,0.8564,4429.7,4429.6,1.1741]
[1757599568114,0.3483,4429.7,4429.6,1.1741]
[1757599569611,1.1812,4429.7,4429.0,0.2022]
[1757599569910,1.1812,4429.7,4428.4,0.4951]
[1757599569911,0.5081,4429.7,4428.4,0.4951]
[1757599570118,0.706,4429.5,4428.4,0.4951]
[1757599570310,0.5081,4429.3,4428.4,0.4951]
[1757599571310,0.5081,4429.1,4428.4,0.4951]
[1757599571608,0.5081,4429.1,4428.6,0.4951]
[1757599571810,0.5081,4429.4,4428.6,0.4951]
[1757599572009,0.5081,4429.2,4428.6,0.4951]
[1757599574016,0.5081,4429.2,4428.0,0.2022]
[1757599574217,0.1979,4429.0,4428.1,0.4951]
[1757599574417,0.5081,4428.9,4428.1,0.4951]
[1757599578019,0.3483,4428.2,4428.1,1.1741]
[1757599579128,0.5081,4428.5,4427.3,41.2951]
[1757599579129,0.5081,4428.0,4427.3,41.2951]
[1757599579323,0.706,4428.0,4427.3,0.4951]
[1757599579621,0.706,4428.5,4427.9,1.1741]
[1757599579821,0.3483,4428.0,4427.9,1.1741]
[1757599580018,1.1812,4428.0,4427.9,0.679]
[1757599580315,1.1812,4428.0,4427.1,40.8]
[1757599580316,0.871,4428.0,4427.6,0.4951]
[1757599580521,1.1812,4427.7,4427.6,0.8391]
[1757599580715,0.6731,4427.7,4427.6,1.1741]
[1757599581018,0.8564,4428.4,4428.3,0.344]
[1757599581222,1.72515726,4428.4,4428.3,0.8391]
[1757599581719,1.72515726,4428.4,4427.8,0.4951]
[1757599581930,1.40035726,4428.3,4428.2,0.8391]
[1757599582115,1.40035726,4428.3,4428.2,1.1741]
[1757599582315,0.8564,4428.3,4428.2,1.1741]
[1757599582516,1.1812,4428.3,4428.2,0.344]
[1757599582715,0.5081,4428.2,4427.8,0.4951]
[1757599582916,1.1812,4428.2,4428.1,0.8391]
[1757599583122,1.1812,4428.2,4427.7,0.4951]
[1757599583322,1.1812,4428.2,4427.5,0.2022]
[1757599583323,1.1812,4428.2,4428.1,0.8391]
[1757599583516,0.6731,4428.2,4428.1,1.1741]
[1757599583718,0.1979,4429.0,4428.1,0.679]
[1757599584016,0.1979,4429.0,4428.0,0.2022]
[1757599584017,1.72496501,4428.9,4428.8,0.8391]
[1757599584416,1.72496501,4428.9,4428.0,0.2022]
[1757599584417,1.21686501,4428.9,4428.0,0.2022]
[1757599584618,1.05186501,4428.8,4428.1,0.4951]
[1757599584819,0.54376501,4428.7,4428.1,0.4951]
[1757599585123,0.8564,4428.2,4428.1,1.1741]
[1757599585327,0.3483,4428.2,4428.1,1.1741]
[1757599585519,0.5081,4428.5,4428.4,0.679]
[1757599585714,32.7319,4429.0,4428.4,1.1741]
[1757599585715,0.5081,4428.9,4428.4,1.1741]
[1757599585921,0.8564,4428.9,4428.8,0.8391]
[1757599586120,1.72488687,4428.9,4428.8,0.8391]
[1757599586318,1.72488687,4428.9,4428.3,0.4951]
[1757599586523,0.8564,4428.4,4428.3,1.1741]
[1757599587017,0.5081,4428.9,4428.3,1.1741]
[1757599587222,32.7319,4429.0,4428.3,0.344]
[1757599587223,1.1812,4428.4,4428.3,0.344]
[1757599587425,1.1812,4428.4,4427.5,0.2022]
[1757599587723,0.3252,4427.7,4427.6,1.1044]
[1757599588124,0.242,4427.8,4427.7,0.4666]
[1757599588331,0.838,4428.5,4428.4,1.1044]
[1757599588628,33.7129,4429.0,4428.9,0.6378]
[1757599588826,34.49857378,4429.0,4428.9,0.3188]
[1757599589133,34.49857378,4429.0,4428.9,0.7854]
[1757599589831,34.25657378,4429.0,4428.9,0.7854]
[1757599590029,34.49857378,4429.0,4428.9,0.7854]
[1757599590324,34.49857378,4429.0,4428.9,1.1044]
[1757599590325,33.98577378,4429.0,4428.9,1.1044]
[1757599590529,33.40287378,4429.0,4428.9,1.1044]
[1757599590729,33.64487378,4429.0,4428.9,1.1044]
[1757599592031,34.15767378,4429.0,4428.9,1.1044]
[1757599592530,34.49857378,4429.0,4428.9,0.3188]
[1757599592727,0.86887378,4429.0,4428.9,1.1044]
[1757599593037,1.4209,4429.0,4428.9,1.1044]
[1757599593329,1.4209,4429.0,4428.9,0.3188]
[1757599593721,1.4209,4429.0,4428.9,0.7854]
[1757599594328,1.4209,4429.0,4428.9,1.1044]
[1757599595833,1.1789,4429.0,4428.9,1.1044]
[1757599596031,1.4209,4429.0,4428.9,1.1044]
[1757599598633,33.372,4429.6,4429.5,1.1044]
[1757599598837,34.49906363,4429.6,4429.5,0.3188]
[1757599599439,34.49906363,4429.6,4429.2,0.4666]
[1757599599440,33.32016363,4429.6,4429.2,0.4666]
[1757599599639,1.1789,4429.3,4429.2,0.7854]
[1757599600038,0.6661,4429.3,4429.2,1.1044]
[1757599600337,0.9081,4429.3,4429.2,1.1044]
[1757599600836,32.534,4429.6,4429.5,1.2951]
[1757599601038,32.776,4429.6,4429.5,1.2951]
[1757599601738,0.5128,4431.2,4431.1,0.6378]
[1757599601935,0.242,4431.2,4431.1,0.4666]
[1757599602132,0.5128,4432.0,4431.1,44.8]
[1757599602334,32.7235,4433.5,4431.1,44.8]
[1757599602335,0.164,4432.4,4431.2,0.4666]
[1757599602532,0.164,4432.3,4432.1,0.4666]
[1757599602734,0.242,4432.2,4432.1,0.4666]
[1757599603236,0.5128,4433.2,4432.1,0.4666]
[1757599603237,0.242,4432.3,4432.1,0.4666]
[1757599603438,0.242,4432.3,4432.2,0.4666]
[1757599603934,0.5128,4433.2,4432.2,4.0]
[1757599604141,32.7235,4433.5,4433.0,0.1907]
[1757599604142,0.242,4433.1,4433.0,0.1907]
[1757599604338,32.531,4433.5,4433.1,0.4666]
[1757599604535,32.773,4433.5,4433.1,0.4666]
[1757599604736,32.773,4433.5,4433.0,0.1907]
[1757599604737,32.773,4433.5,4433.2,40.8]
[1757599605438,32.773,4433.5,4433.3,0.4666]
[1757599605638,0.242,4433.4,4433.3,0.4666]
[1757599607046,0.5128,4433.3,4433.2,40.8]
[1757599607233,0.242,4433.4,4433.3,0.4666]
[1757599611648,0.7548,4433.4,4433.3,0.4666]
[1757599612451,0.242,4433.4,4433.3,0.4666]
[1757599612843,0.5672,4433.4,4433.3,1.1044]
[1757599614844,0.6661,4432.9,4432.8,0.7854]
[1757599615150,1.4199,4432.9,4432.3,0.4666]
[1757599615347,0.5128,4433.3,4432.9,0.4666]
[1757599615547,0.5662,4433.2,4433.1,1.1044]
[1757599615855,1.079,4433.2,4433.1,1.1044]
[1757599616448,32.531,4433.5,4433.1,1.1044]
[1757599616657,0.241,4433.4,4433.3,0.6378]
[1757599616848,1.4199,4433.4,4433.3,0.3188]
[1757599617149,0.838,4433.1,4433.0,0.7854]
[1757599617350,1.079,4433.1,4433.0,1.1044]
[1757599617643,32.531,4433.5,4433.1,0.5015]
[1757599617853,0.241,4433.4,4433.1,0.5015]
[1757599618351,0.241,4433.3,4433.1,0.5015]
[1757599620056,0.4754,4433.2,4432.6,0.5015]
[1757599620351,0.241,4433.1,4432.6,0.5015]
[1757599620555,0.241,4433.1,4433.0,0.6846]
[1757599621251,0.7164,4433.1,4433.0,0.5015]
[1757599621649,0.241,4433.1,4433.0,0.5015]
[1757599621851,0.241,4433.1,4433.0,0.6846]
[1757599622254,0.241,4433.1,4432.6,0.5015]
[1757599622255,0.4754,4432.9,4432.6,0.5015]
[1757599622449,0.4754,4432.7,4432.4,41.3015]
[1757599622759,0.7164,4432.6,4432.5,0.5015]
[1757599623150,0.241,4432.6,4432.5,0.5015]
[1757599623666,0.241,4432.6,4432.0,0.6922]
[1757599623961,0.4754,4432.4,4431.7,0.5015]
[1757599624162,0.241,4432.3,4431.0,0.1831]
[1757599624346,0.4754,4432.2,4431.6,0.5015]
[1757599624550,0.241,4432.3,4431.7,40.8]
[1757599625153,0.4754,4432.2,4431.7,40.8]
[1757599625355,0.4754,4432.2,4431.5,0.5015]
[1757599625960,0.4754,4432.2,4431.5,0.6846]
[1757599626258,0.4754,4432.6,4432.0,0.1831]
[1757599626562,0.241,4432.5,4432.1,0.5015]
[1757599626757,0.241,4432.4,4432.0,0.1831]
[1757599627460,0.241,4432.4,4431.5,0.1831]
[1757599627657,0.4754,4432.3,4431.6,0.5015]
[1757599629264,0.4754,4432.1,4431.2,0.5015]
[1757599629460,0.4754,4431.9,4431.2,0.5015]
[1757599629663,0.241,4431.8,4430.5,0.1831]
[1757599629967,0.4754,4431.7,4430.7,0.5015]
[1757599630659,0.152,4431.6,4430.7,0.5015]
[1757599630856,0.145,4431.5,4430.7,0.72716999]
[1757599631060,0.189,4432.5,4430.7,0.72716999]
[1757599631061,0.4754,4432.0,4431.1,0.5015]
[1757599631358,0.54197303,4431.9,4431.1,0.5015]
[1757599631556,1.37476782,4432.5,4431.5,0.1831]
[1757599631557,0.54197303,4431.8,4431.5,0.1831]
[1757599631755,0.54197303,4431.7,4431.6,0.5015]
[1757599631954,0.217,4431.8,4431.6,0.5015]
[1757599633069,0.217,4431.8,4431.0,0.1831]
[1757599633070,0.4754,4431.7,4431.0,0.1831]
[1757599633267,0.4754,4431.7,4431.1,0.5015]
[1757599633569,0.4754,4431.4,4430.1,0.5015]
[1757599633864,0.4754,4431.2,4430.1,0.5015]
[1757599634062,0.54297162,4431.3,4430.1,0.5015]
[1757599634063,0.189,4431.0,4430.1,0.5015]
[1757599634368,1.01812935,4430.9,4430.1,0.5015]
[1757599634568,0.4754,4430.9,4430.1,0.5015]
[1757599635770,0.4754,4430.9,4429.6,0.5015]
[1757599635964,0.4754,4430.7,4429.6,0.5015]
[1757599636268,0.189,4431.0,4429.7,40.8]
[1757599636563,0.54224753,4430.9,4429.7,40.8]
[1757599636760,0.4754,4430.8,4429.6,0.5015]
[1757599636966,0.7678604,4430.7,4429.6,0.5015]
[1757599637166,0.189,4430.5,4429.6,0.5015]
[1757599637362,0.4754,4430.4,4429.6,0.5015]
[1757599637557,0.189,4430.5,4429.6,0.5015]
[1757599637558,0.4754,4430.2,4429.6,0.5015]
[1757599637758,0.4754,4430.2,4428.5,0.1831]
[1757599637759,0.4754,4430.3,4428.9,0.5015]
[1757599637959,0.6644,4430.0,4428.9,0.5015]
[1757599638162,0.54196639,4429.9,4428.9,0.5015]
[1757599638367,0.4754,4429.8,4428.9,0.5015]
[1757599638760,0.4754,4429.4,4428.5,0.5015]
[1757599638966,0.189,4429.5,4428.1,0.5015]
[1757599638967,0.4754,4429.2,4428.1,0.5015]
[1757599639377,0.6644,4429.0,4427.6,0.5015]
[1757599640775,0.22582,4428.9,4427.6,0.5015]
[1757599640983,0.4754,4428.8,4427.6,0.5015]
[1757599641375,0.189,4429.0,4427.0,0.1831]
[1757599641376,0.22583001,4428.7,4427.0,0.1831]
[1757599641582,0.4754,4428.4,4427.1,0.5015]
[1757599641787,0.4754,4428.2,4427.1,0.5015]
[1757599643083,0.091,4428.1,4427.2,0.22585]
[1757599643384,0.045,4428.2,4427.3,0.5015]
[1757599643778,0.074,4428.4,4427.3,0.5015]
[1757599644089,0.074,4428.4,4427.6,0.5015]
[1757599644285,0.4754,4428.6,4427.6,0.5015]
[1757599644482,0.4754,4429.1,4427.7,0.22583]
[1757599644690,32.506,4430.2,4427.5,0.1831]
[1757599644691,0.241,4429.0,4427.8,0.5015]
[1757599644991,0.7164,4429.0,4427.8,0.5015]
[1757599645285,0.4754,4429.0,4428.1,0.5015]
[1757599645680,0.18240061,4429.8,4428.1,0.5015]
[1757599645988,0.241,4429.4,4428.1,0.5015]
[1757599646488,0.241,4429.3,4428.1,0.5015]
[1757599647188,0.4754,4429.5,4428.1,0.7273]
[1757599647395,33.1628,4430.0,4428.2,0.4572]
[1757599647589,0.241,4429.9,4428.2,0.4572]
[1757599647782,0.4538,4429.8,4428.3,0.22578]
[1757599648091,0.4538,4429.8,4428.6,0.4572]
[1757599648682,0.241,4429.7,4428.6,0.4572]
[1757599650184,0.241,4429.6,4428.6,0.4572]
[1757599650488,0.241,4430.0,4428.6,0.4572]
[1757599650785,0.4538,4430.6,4429.6,0.4572]
[1757599650987,0.241,4430.5,4429.6,0.4572]
[1757599651186,0.4538,4430.4,4429.6,0.4572]
[1757599652095,0.4538,4429.9,4428.4,0.4572]
[1757599652391,0.4538,4429.7,4428.4,0.4572]
[1757599652995,0.67958,4429.7,4428.4,0.4572]
[1757599653189,0.22578,4429.6,4428.4,0.4572]
[1757599653395,0.6456,4429.5,4428.4,0.4572]
[1757599654092,0.4538,4429.3,4428.4,0.4572]
[1757599654687,0.4538,4429.3,4428.5,0.1979]
[1757599654989,0.117,4429.2,4428.6,0.4572]
[1757599655194,0.1918,4429.0,4428.1,0.4572]
[1757599655501,0.4538,4428.9,4428.1,0.4572]
[1757599657688,0.4538,4429.7,4428.1,0.4572]
[1757599657896,0.095,4429.4,4428.1,0.4572]
[1757599658194,0.4538,4429.3,4428.3,0.4572]
[1757599658383,0.5308,4429.3,4428.3,0.4572]
[1757599659389,0.077,4429.3,4428.3,0.4572]
[1757599659591,0.4538,4429.7,4428.3,0.4572]
[1757599659793,0.099,4429.6,4428.3,0.4572]
[1757599660398,0.085,4429.5,4428.3,0.4572]
[1757599661298,0.2257,4429.4,4428.3,0.4572]
[1757599661599,0.4538,4429.3,4428.3,0.4572]
[1757599661998,0.99756471,4429.2,4427.8,0.4572]
[1757599662204,0.4538,4428.9,4427.8,0.4572]
[1757599662595,0.4538,4428.7,4427.8,0.4572]
[1757599662898,0.22582,4428.8,4427.5,40.9979]
[1757599662899,0.4538,4428.4,4427.5,40.9979]
[1757599663198,0.4538,4428.4,4427.6,0.4572]
[1757599663697,0.1918,4429.0,4427.6,0.4572]
[1757599663698,0.4538,4428.9,4427.6,0.4572]
[1757599663902,0.136,4428.8,4427.6,0.4572]
[1757599664102,0.136,4428.8,4427.7,0.4572]
[1757599664299,0.4538,4428.7,4427.7,0.4572]
[1757599666201,0.1918,4428.5,4427.7,0.4572]
[1757599666396,0.4538,4428.4,4427.7,0.4572]
[1757599668107,0.135,4428.7,4427.7,0.4572]
[1757599668297,0.5457142,4428.6,4427.7,0.4572]
[1757599668496,0.135,4428.7,4427.7,0.4572]
[1757599668696,0.54571408,4428.6,4427.7,0.4572]
[1757599668902,0.4538,4428.6,4427.7,0.4572]
[1757599669801,0.14,4428.9,4427.7,0.4572]
[1757599670002,0.54570921,4428.8,4427.7,0.4572]
[1757599670199,0.54570921,4428.7,4427.7,0.4572]
[1757599670392,0.14,4428.9,4427.7,0.4572]
[1757599670595,0.54572125,4428.8,4427.7,0.4572]
[1757599670800,0.54572125,4428.7,4427.6,0.4572]
[1757599671006,0.6488,4429.0,4427.6,0.4572]
[1757599671206,0.54570136,4428.9,4427.6,0.4572]
[1757599671407,0.4538,4428.7,4427.8,0.4572]
[1757599671604,0.4538,4428.4,4427.8,0.4572]
[1757599672005,0.1918,4428.5,4427.2,0.4572]
[1757599672203,0.99837127,4428.4,4427.2,0.4572]
[1757599672400,0.4538,4428.2,4427.2,0.4572]
[1757599673104,0.5828,4428.3,4427.2,0.4572]
[1757599673301,0.54469579,4428.2,4427.2,0.4572]
[1757599673496,0.22583001,4428.9,4427.1,40.8]
[1757599673497,0.4538,4428.9,4427.4,0.4572]
[1757599673702,0.54465886,4428.8,4427.5,0.1979]
[1757599673904,0.4538,4428.9,4427.6,0.4572]
[1757599674106,0.4538,4428.9,4427.6,0.22583]
[1757599674301,0.4538,4428.9,4427.7,0.4572]
[1757599675104,0.2257,4428.8,4428.0,0.1979]
[1757599675300,0.2257,4428.8,4428.1,0.4572]
[1757599676801,0.2257,4428.8,4428.0,0.1979]
[1757599676802,0.2257,4428.8,4428.6,0.4572]
[1757599679010,0.2257,4428.8,4428.6,0.4627]
[1757599679503,0.2257,4428.8,4428.5,0.1979]
[1757599679703,0.2257,4428.8,4428.6,0.4627]
[1757599680006,0.4663,4428.7,4428.6,0.4627]
[1757599680207,0.2257,4428.8,4428.5,0.1862]
[1757599680404,0.2257,4428.8,4428.6,0.4627]
[1757599680610,0.24,4429.8,4428.6,0.4627]
[1757599680999,0.4663,4429.7,4428.6,0.4627]
[1757599681207,0.24,4429.8,4428.7,40.8]
[1757599681504,0.4663,4429.7,4428.8,0.4627]
[1757599681708,0.4663,4430.1,4429.0,0.1862]
[1757599682006,0.4663,4430.1,4429.1,0.4627]
[1757599682206,0.1944,4430.0,4429.1,0.4627]
[1757599682912,0.4663,4430.1,4429.1,0.4627]
[1757599684208,0.4663,4429.9,4429.1,0.4627]
[1757599685609,0.1944,4430.0,4428.5,1.60116445]
[1757599685610,0.22576001,4429.8,4428.5,1.60116445]
[1757599685815,0.1944,4429.5,4428.3,1.60116445]
[1757599686001,0.4663,4429.4,4428.1,2.06386445]
[1757599686207,0.24,4429.3,4428.3,0.4627]
[1757599686506,0.24,4429.3,4428.2,42.40116445]
[1757599686507,0.4663,4429.2,4428.2,40.8]
[1757599686823,0.1944,4428.5,4427.4,0.4627]
[1757599687012,0.7063,4428.4,4427.0,1.78736445]
[1757599687213,0.24,4428.4,4427.1,40.8]
[1757599687407,0.4663,4428.3,4427.3,0.4627]
[1757599688113,0.4663,4428.3,4427.5,0.1862]
[1757599688313,0.4663,4428.3,4427.6,0.4627]
[1757599690314,0.1944,4428.5,4427.2,1.60116445]
[1757599690614,0.4663,4428.4,4427.3,0.4627]
[1757599692314,0.5643,4428.4,4427.3,0.4627]
[1757599692909,0.4663,4428.4,4427.3,0.4627]
[1757599693316,0.4663,4428.4,4427.4,0.22583999]
[1757599693612,0.4663,4428.4,4427.6,0.4627]
[1757599695220,0.4663,4428.4,4427.2,0.4627]
[1757599695710,0.4663,4428.4,4427.1,42.40116445]
[1757599695711,0.1944,4428.5,4427.1,40.8]
[1757599696107,0.4663,4427.4,4426.6,0.4627]
[1757599696507,0.1944,4427.5,4426.1,32.53]
[1757599696508,0.1944,4427.5,4426.5,40.8]
[1757599696814,0.4663,4427.4,4426.5,40.8]
[1757599697017,0.4663,4427.4,4426.1,2.06386445]
[1757599697209,0.2259,4427.3,4425.6,2.06386445]
[1757599697409,0.1944,4427.5,4425.6,1.60116445]
[1757599697410,0.69221,4427.4,4425.6,1.60116445]
[1757599697619,0.1944,4427.5,4425.7,41.2627]
[1757599697817,0.22591,4427.4,4425.7,41.2627]
[1757599698011,0.4663,4427.3,4425.7,41.2627]
[1757599698212,0.091,4427.2,4425.8,0.4627]
[1757599698420,0.4663,4426.9,4425.8,0.4627]
[1757599700424,0.4663,4426.7,4425.4,0.4627]
[1757599700623,0.22592,4426.8,4425.5,40.8]
[1757599700624,0.4663,4426.8,4425.5,40.8]
[1757599700918,0.1944,4427.0,4425.5,40.8]
[1757599700919,0.4663,4426.6,4425.5,40.8]
[1757599701224,0.4663,4426.4,4425.1,0.4627]
[1757599701615,0.1944,4426.5,4425.2,40.8]
[1757599701814,0.22595,4426.4,4425.2,40.8]
[1757599702011,0.4663,4426.4,4425.3,0.4627]
[1757599702717,0.2259,4426.7,4425.3,0.4627]
[1757599702929,0.24,4426.6,4425.3,0.4627]
[1757599703312,0.6607,4426.5,4425.3,0.4627]
[1757599703513,0.24,4426.6,4425.3,0.4627]
[1757599703709,0.24,4426.6,4425.5,0.6489]
[1757599703914,0.24,4426.6,4425.6,0.4627]
[1757599704325,0.4663,4426.5,4425.6,0.4627]
[1757599704527,0.6607,4426.5,4425.6,0.4627]
[1757599705318,0.2259,4426.7,4425.8,0.4627]
[1757599705520,0.2259,4426.7,4425.8,0.24]
[1757599705819,0.2259,4426.7,4426.1,0.4627]
[1757599706624,0.6922,4426.7,4426.1,0.4627]
[1757599707120,0.4663,4426.6,4426.2,40.8]
[1757599707421,0.4507,4426.4,4425.6,0.441]
[1757599707724,0.4507,4426.4,4425.7,40.8]
[1757599708124,0.1877,4426.5,4425.7,40.8]